Workbook

Sheet Pasiūlymas
A1: Perkančioji organizacija, kuriai teikiamas pasiūlymas: | C1: VŠĮ Kauno klinikinė ligoninė
B3: PASIŪLYMAS
B4: Vienkartinės medicininės priemonės
A6: Data: | B6: 2018-04-10
A7: Nr.: | B7: 20325
A8: Vieta: | B8: Kaunas
A10: Tiekėjo pavadinimas /Jeigu dalyvauja ūkio subjektų grupė, surašomi visi dalyvių pavadinimai/ | C10: UAB "Skirgesa"
A11: Įmonės kodas /Jeigu dalyvauja ūkio subjektų grupė, surašomi visi dalyvių kodai/ | C11: 234449420
A12: PVM mokėtojo kodas /Jeigu dalyvauja ūkio subjektų grupė, surašomi visi dalyvių kodai/ | C12: LT344494219
A13: Banko pavadinimas, banko kodas, sąskaitos Nr. | C13: A/s. LT41 7300 0100 7979 6368, AB Swedbank, banko kodas 73000
A14: Tiekėjo adresas /Jeigu dalyvauja ūkio subjektų grupė, surašomi visi dalyvių adresai/ | C14: Energetikų g. 8, Kaunas
A15: Telefono numeris | C15: 8 37 457746
A16: Fakso numeris | C16: 8 37 458161
A17: El. pašto adresas | C17: info@skirgesa.lt
A18: Asmens, pasirašiusio pasiūlymą saugiu elektroniniu parašu, vardas, pavardė, pareigos | C18: Administratorė Gintarė Saročkienė
A19: Asmens, įgalioto pasirašyti sutartį, vardas, pavardė, pareigos | C19: Direktorius Skirmantas Akelis
A23: 1. Šiuo pasiūlymu pažymime, kad sutinkame su visomis pirkimo sąlygomis, nustatytomis: 1) pirkimo skelbime, paskelbtame Viešųjų pirkimų įstatymo nustatyta tvarka; 2) pirkimo sąlygose ir kituose pirkimo dokumentuose (jų paaiškinimuose, papildymuose).
A25: Siūlomas pirkimo objektas visiškai atitinka pirkimo sąlygose nustatytus reikalavimus ir jo kaina yra:
A28: Nr. | B28: Pavadinimas | C28: Kiekis | D28: Mato vienetas | E28: Kaina be PVM | F28: Suma be PVM | G28: Siūlomos prekės pavadinimas ir/ar gamintojas | H28: Siūlomos prekės parametrai
A29: 351. | B29: Automatinė "giljotinos tipo" biopsinė šaudyklė
A30: 351.1. | B30: Automatinė "giljotinos tipo" biopsinė šaudyklė | C30: 150 | D30: Vnt. | E30: 28.5 | F30: =C30*E30 -> 4275 | G30: CoreCut, Pajunk
A31: 351.1.1. | B31: Sterili, vienkartinio naudojimo, višiškai automatinė | H31: Sterili, vienkartinio naudojimo, višiškai automatinė
A32: 351.1.2. | B32: Adata su echopozityviniu žymekliu bei punkcijos gylio centrimetrinėmis atžymomis | H32: Adata su echopozityviniu žymekliu bei punkcijos gylio centrimetrinėmis atžymomis
A33: 351.1.3. | B33: Būtina galimybė užtaisyti šaudyklę pakartotinai ir paimti kelis biopsinius stulpelius | H33: Būtina galimybė užtaisyti šaudyklę pakartotinai ir paimti kelis biopsinius stulpelius
A34: 351.1.4. | B34: Būtinas apsauginis mugtukas nuo atsitiktinio iššovimo | H34: Būtinas apsauginis mugtukas nuo atsitiktinio iššovimo
A35: 351.1.5. | B35: Biopsijos stulpelių ilgiai 10mm ir 22mm | H35: Biopsijos stulpelių ilgiai 10mm ir 22mm
A36: 351.1.6. | B36: Adatos diemetras 16G, adatos ilgis 180mm ± 30mm | H36: Adatos diemetras 16G, adatos ilgis 150 mm/200mm
E37: Suma be PVM | F37: =F30 -> 4275
E38: PVM suma | F38: =F39-F37 -> 213.75
E39: Suma su PVM | F39: =F37*1.05 -> 4488.75
A41: 352. | B41: Kvėpavimo kontūras suaugusiems dvikanalis
A42: 352.1. | B42: Kvėpavimo kontūras suaugusiems dvikanalis | C42: 300 | D42: Vnt. | E42: 8.8 | F42: =C42*E42 -> 2640 | G42: Septiflow, AL-11103-160
A43: 352.1.1. | B43: Gofruotas kvėpavimo kontūras, sudarytas iš vieno vamzdžio, turintis sienelę, skiriančią vamzdį į du kanalus - įkvėpimo ir iškvėpimo | H43: Gofruotas kvėpavimo kontūras, sudarytas iš vieno vamzdžio, turintis sienelę, skiriančią vamzdį į du kanalus - įkvėpimo ir iškvėpimo
A44: 352.1.2. | B44: Pilnai uždara sistema | H44: Pilnai uždara sistema
A45: 352.1.3. | B45: Vamzdžio diametras 22mm, ilgis 180cm ± 10cm | H45: Vamzdžio diametras 22mm, ilgis 180cm
A46: 352.1.4. | B46: Su alkūne paciento pusėje, kuri turi CO2 monitoravimo angą. Su integruota CO2 monitoravimo linija. Vamzdyje integruotas drėgmės surinkėjas su beadatiniais konektoriais | H46: Su alkūne paciento pusėje, kuri turi CO2 monitoravimo angą. Su integruota CO2 monitoravimo linija. Vamzdyje integruotas drėgmės surinkėjas su beadatiniais konektoriais
A47: 352.1.5. | B47: Kontūrų galuose standartiniai konektoriai 22mmF | H47: Kontūrų galuose standartiniai konektoriai 22mmF
A48: 352.1.6. | B48: Papildoma atšaka - limbas 90cm ±10cm ilgio su konektoriais 22mmF abiejuose galuose | H48: Papildoma atšaka - limbas 90cm ilgio su konektoriais 22mmF abiejuose galuose
A49: 352.1.7. | B49: Maišo tūris 2L | H49: Maišo tūris 2L
A50: 352.1.8. | B50: Pakuotėje turi būti filtras | H50: Pakuotėje turi būti filtras
A51: 352.1.9. | B51: Vienkartinis | H51: Vienkartinis
E52: Suma be PVM | F52: =F42 -> 2640
E53: PVM suma | F53: =F54-F52 -> 132
E54: Suma su PVM | F54: =F52*1.05 -> 2772
A56: 353. | B56: Priemonės miografiniam ir neurografiniam tyrimui
A57: 353.1. | B57: Kabelis miografiniam tyrimui | C57: 2 | D57: Vnt.
A58: 353.1.1. | B58: Kabelis, tinkantis elektromiografui KEYPOINT G4, arba lygiavertis
A59: 353.2. | B59: Paciento elektrodas | C59: 240 | D59: Vnt.
A60: 353.2.1. | B60: Tinkantis elektromiografui KEYPOINT G4 arba lygiavertis
A61: 353.3. | B61: Vienkartinis įžeminimo elektrodas (neurografijai) | C61: 200 | D61: Vnt.
A62: 353.3.1. | B62: Tinkantis elektromiografui KEYPOINT G4 arba lygiavertis
E63: Suma be PVM
E64: PVM suma
E65: Suma su PVM
A67: 354. | B67: Reguliatorius skysčio srauto
A68: 354.1. | B68: Reguliatorius skysčio srauto | C68: 210 | D68: Vnt.
A69: 354.1.1. | B69: Gradacijos skalė 0-250ml/h
A70: 354.1.2. | B70: Įkomponuotas į 150cm ilgio infuzinę sistemą, turinčią spaustuką infuzijai stabdyti bei Luer Lock tipo konektorių
E71: Suma be PVM
E72: PVM suma
E73: Suma su PVM
A75: 355. | B75: Adatos spinalinės
A76: 355.1. | B76: Adatos spinalinės G25 0,5x90 mm | C76: 20 | D76: Vnt. | E76: 1.1 | F76: =C76*E76 -> 22 | G76: Spinal Needle, SPPK2590, Egemen
A77: 355.1.1. | B77: Adatos pieštuko formos, buku galu | H77: Adatos pieštuko formos, buku galu
A78: 355.1.2. | B78: Nuopjovos kraštai užapvalinti, anga šone su intradiuseriu (nukreipėju) | H78: Nuopjovos kraštai užapvalinti, anga šone su intradiuseriu (nukreipėju)
A79: 355.2. | B79: Adatos spinalinės G26 0,40-0,45 x 88-90 mm | C79: 100 | D79: Vnt. | E79: 1.18 | F79: =C79*E79 -> 118 | G79: Spinal Needle, TSPPK2690, Egemen
A80: 355.2.1. | B80: Adatos pieštuko formos, buku galu | H80: Adatos pieštuko formos, buku galu
A81: 355.2.2. | B81: Nuopjovos kraštai užapvalinti, anga šone su intradiuseriu (nukreipėju) | H81: Nuopjovos kraštai užapvalinti, anga šone su intradiuseriu (nukreipėju)
A82: 355.3. | B82: Adatos spinalinės G27 0,40-0,45 x 88-90 mm | C82: 420 | D82: Vnt. | E82: 1.42 | F82: =C82*E82 -> 596.4 | G82: Spinal Needle SPPK2790, Egemen
A83: 355.3.1. | B83: Adatos pieštuko formos, buku galu | H83: Adatos pieštuko formos, buku galu
A84: 355.3.2. | B84: Nuopjovos kraštai užapvalinti, anga šone su intradiuseriu (nukreipėju) | H84: Nuopjovos kraštai užapvalinti, anga šone su intradiuseriu (nukreipėju)
E85: Suma be PVM | F85: =SUM(F76:F82) -> 736.4
E86: PVM suma | F86: =F87-F85 -> 36.82
E87: Suma su PVM | F87: =F85*1.05 -> 773.22
A89: 356. | B89: Sprotte tipo arba analogiška adata
A90: 356.1. | B90: Sprotte tipo arba analogiška adata G26 88-90mm | C90: 80 | D90: Vnt. | E90: 3.6 | F90: =C90*E90 -> 288 | G90: Sprotte Needle, Pajunk
A91: 356.1.1. | B91: Visiškai atraumatinė; idealiai nupoliruotas vidinis ir išorinis kaniulės paviršius | H91: Visiškai atraumatinė; idealiai nupoliruotas vidinis ir išorinis kaniulės paviršius
A92: 356.1.2. | B92: Šoninis atvėrimas maksimaliai pritrauktas prie kaniulės galiuko greitam likvoro patekimui | H92: Šoninis atvėrimas maksimaliai pritrauktas prie kaniulės galiuko greitam likvoro patekimui
A93: 356.1.3. | B93: Užapvalinti atraumatiniai atvėrimo kraštai, saugantys pacientą nuo traumavimo ir atplaišų į kaniulę patekimo, su padidinimo efektu kaniulės laikiklyje greitai likvoro indikacijai | H93: Užapvalinti atraumatiniai atvėrimo kraštai, saugantys pacientą nuo traumavimo ir atplaišų į kaniulę patekimo, su padidinimo efektu kaniulės laikiklyje greitai likvoro indikacijai
A94: 356.1.4. | B94: Spalvotas dydžių kodavimas su nurodytu dydžiu ne tik G, bet ir milimetrais | H94: Spalvotas dydžių kodavimas su nurodytu dydžiu ne tik G, bet ir milimetrais
A95: 356.2. | B95: Sprotte tipo arba analogiška adata G27 88-90mm | C95: 80 | D95: Vnt. | E95: 4.5 | F95: =C95*E95 -> 360 | G95: Sprotte Needle, Pajunk
A96: 356.2.1. | B96: Visiškai atraumatinė; idealiai nupoliruotas vidinis ir išorinis kaniulės paviršius | H96: Visiškai atraumatinė; idealiai nupoliruotas vidinis ir išorinis kaniulės paviršius
A97: 356.2.2. | B97: Šoninis atvėrimas maksimaliai pritrauktas prie kaniulės galiuko greitam likvoro patekimui | H97: Šoninis atvėrimas maksimaliai pritrauktas prie kaniulės galiuko greitam likvoro patekimui
A98: 356.2.3. | B98: Užapvalinti atraumatiniai atvėrimo kraštai, saugantys pacientą nuo traumavimo ir atplaišų į kaniulę patekimo, su padidinimo efektu kaniulės laikiklyje greitai likvoro indikacijai | H98: Užapvalinti atraumatiniai atvėrimo kraštai, saugantys pacientą nuo traumavimo ir atplaišų į kaniulę patekimo, su padidinimo efektu kaniulės laikiklyje greitai likvoro indikacijai
A99: 356.2.4. | B99: Spalvotas dydžių kodavimas su nurodytu dydžiu ne tik G, bet ir milimetrais | H99: Spalvotas dydžių kodavimas su nurodytu dydžiu ne tik G, bet ir milimetrais
E100: Suma be PVM | F100: =F90+F95 -> 648
E101: PVM suma | F101: =F102-F100 -> 32.4
E102: Suma su PVM | F102: =F100*1.05 -> 680.4
A104: 357. | B104: Spinalinė pieštukinio tipo adata
A105: 357.1. | B105: Spinalinė pieštukinio tipo adata | C105: 700 | D105: Vnt. | E105: 4.5 | F105: =C105*E105 -> 3150 | G105: Sprette Needle, Pajunk
A106: 357.1.1. | B106: Vienkartinė sterili. Atraumatinis pieštukinio tipo adatos galiukas | H106: Vienkartinė sterili. Atraumatinis pieštukinio tipo adatos galiukas
A107: 357.1.2. | B107: Idealiai nupoliruotas vidinis ir išorinis kaniulės paviršius | H107: Idealiai nupoliruotas vidinis ir išorinis kaniulės paviršius
A108: 357.1.3. | B108: Šoninis atvėrimas maksimaliai pritrauktas prie kaniulės galiuko greitam likvoro patekimui | H108: Šoninis atvėrimas maksimaliai pritrauktas prie kaniulės galiuko greitam likvoro patekimui
A109: 357.1.4. | B109: Skaidrus laikiklis su padidinimo efektu greitai likvoro indikacijai | H109: Skaidrus laikiklis su padidinimo efektu greitai likvoro indikacijai
A110: 357.1.5. | B110: Spalvotas dydžių kodavimas su nurodytu dydžiu ne tik G bet ir milimetrais (mm) | H110: Spalvotas dydžių kodavimas su nurodytu dydžiu ne tik G bet ir milimetrais (mm)
A111: 357.1.6. | B111: Komplektuojama vienoje pakuotėje su pravedėju. Dydžiai pasirinktinai; 25G x 90mm; 25G x 120mm; 27G x 90mm; 27G x 120mm; 29G x 90mm | H111: Komplektuojama vienoje pakuotėje su pravedėju. Dydžiai pasirinktinai; 25G x 90mm; 25G x 120mm; 27G x 90mm; 27G x 120mm; 29G x 90mm
E112: Suma be PVM | F112: =F105 -> 3150
E113: PVM suma | F113: =F114-F112 -> 157.5
E114: Suma su PVM | F114: =F112*1.05 -> 3307.5
A116: 358. | B116: Saugūs automatiniai lancetai - adatėlės
A117: 358.1. | B117: Saugūs automatiniai lancetai - adatėlės | C117: 2500 | D117: Vnt.
A118: 358.1.1. | B118: Skirti kapiliarinio kraujo mėginio paėmimui iš kulniuko genetiniams tyrimams
A119: 358.1.2. | B119: Su automatiniu dūrio mechanizmu
A120: 358.1.3. | B120: Dūrio gylis 2,0m 21G, dūrio perimetras 0,8mm
E121: Suma be PVM
E122: PVM suma
E123: Suma su PVM
A125: 359. | B125: Apklotas lipniu kraštu 150x240 cm
A126: 359.1. | B126: Apklotas lipniu kraštu 150x240 cm | C126: 1500 | D126: Vnt. | E126: 2.498 | F126: =E126*C126 -> 3747 | G126: Medline
A127: 359.1.1. | B127: Medžiaga vienkartinio naudojimo sterili. | H127: Medžiaga vienkartinio naudojimo sterili.
A128: 359.1.2. | B128: Apklotas sudarytas iš ne mažiau kaip trijų sluoksnių: viršutinis iš neaustinės medžiagos - gerai sugeria skysčius, vidurinis - iš polietileno, nepralaidus, apatinis - apsauginis neaustinės medžiagos sluoksnis | H128: Apklotas sudarytas iš trijų sluoksnių: viršutinis iš neaustinės medžiagos - gerai sugeria skysčius, vidurinis - iš polietileno, nepralaidus, apatinis - apsauginis neaustinės medžiagos sluoksnis
A129: 359.1.3. | B129: Produktas turi trijų lygių pakuotę | H129: Produktas turi trijų lygių pakuotę
A130: 359.1.4. | B130: Apklotas įpakuotas steriliame įpakavime, su sterilumo kontrolės sistema, t.y. lipdukas su pakuotės sterilumo ir gamybos duomenimis | H130: Apklotas įpakuotas steriliame įpakavime, su sterilumo kontrolės sistema, t.y. lipdukas su pakuotės sterilumo ir gamybos duomenimis
A131: 359.1.5. | B131: Leistinas apkloto dydžių nuokrypis ± 5cm.
E132: Suma be PVM | F132: =SUM(F126:F131) -> 3747
E133: PVM suma | F133: =F134-F132 -> 187.35
E134: Suma su PVM | F134: =F132*1.05 -> 3934.35
A136: 360. | B136: Operacinio lauko plėvelė 55 x 45 cm, lipni dalis 45 x 48 cm
A137: 360.1. | B137: Operacinio lauko plėvelė 55 x 45 cm, lipni dalis 45 x 48 cm | C137: 2500 | D137: Vnt. | E137: 1.718 | F137: =E137*C137 -> 4295 | G137: Pharmaplast
A138: 360.1.1. | B138: Vienkartinio naudojimo, sterili | H138: Vienkartinio naudojimo, sterili
A139: 360.1.2. | B139: Elastinė, permatoma, lipni poliesterio plėvelė | H139: Elastinė, permatoma, lipni poliesterio plėvelė
A140: 360.1.3. | B140: Nealergizuoja odos, patikimai prilimpa plėvelės kraštai, neatsiklijuoja ilgų operacijų metu, lengvai užklijuojama | H140: Nealergizuoja odos, patikimai prilimpa plėvelės kraštai, neatsiklijuoja ilgų operacijų metu, lengvai užklijuojama
A141: 360.1.4. | B141: Plėvelė turi 2 nelimpančius kraštus | H141: Plėvelė turi 2 nelimpančius kraštus
A142: 360.1.5. | B142: Leistinas dydžių nuokrypis ± 5cm
E143: Suma be PVM | F143: =SUM(F137:F142) -> 4295
E144: PVM suma | F144: =F145-F143 -> 214.75
E145: Suma su PVM | F145: =F143*1.05 -> 4509.75
A147: 361. | B147: Apklotų rinkinys rankos operacijoms
A148: 361.1. | B148: Apklotų rinkinys rankos operacijoms | C148: 300 | D148: Vnt. | E148: 8.386 | F148: =E148*C148 -> 2515.8 | G148: Medline
A149: 361.1.1. | B149: Apklotai sudaryti iš ne mažiau kaip trijų sluoksnių: viršutinis iš neaustinės medžiagos - gerai sugeria skysčius, vidurinis - iš polietileno, nepralaidus, apatinis - apsauginis neaustinės medžiagos sluoksnis | H149: Apklotai sudaryti iš trijų sluoksnių: viršutinis iš neaustinės medžiagos - gerai sugeria skysčius, vidurinis - iš polietileno, nepralaidus, apatinis - apsauginis neaustinės medžiagos sluoksnis
A150: 361.1.2. | B150: Rinkinio sudėtis: apklotas 230 x 300 cm su elastine anga 3,5 cm, skysčius sugerianti dalis ne mažiau 50 x 100 cm – 1 vnt.; Apklotas instrumentiniam staliukui 150x190 cm – 1 vnt.; Sutvirtintas maišas MAYO staliukui 78 x145 – 1 vnt | H150: Rinkinio sudėtis: apklotas 230 x 300 cm su elastine anga 3,5 cm, skysčius sugerianti 50 x 100 cm – 1 vnt.; Apklotas instrumentiniam staliukui 150x190 cm – 1 vnt.; Sutvirtintas maišas MAYO staliukui 78 x145 – 1 vnt
A151: 361.1.3. | B151: Produktas turi trijų lygių pakuotę | H151: Produktas turi trijų lygių pakuotę
A152: 361.1.4. | B152: Rinkinys įpakuotas steriliame įpakavime, su sterilumo kontrolės sistema | H152: Rinkinys įpakuotas steriliame įpakavime, su sterilumo kontrolės sistema
A153: 361.1.5. | B153: Leistinas apklotų dydžių nuokrypis ± 5cm
E154: Suma be PVM | F154: =SUM(F148:F153) -> 2515.8
E155: PVM suma | F155: =F156-F154 -> 125.79
E156: Suma su PVM | F156: =F154*1.05 -> 2641.59
A158: 362. | B158: Apklotų rinkinys klubo sąnario endoprotezavimui
A159: 362.1. | B159: Apklotų rinkinys klubo sąnario endoprotezavimui | C159: 800 | D159: Vnt. | E159: 21.98 | F159: =E159*C159 -> 17584 | G159: Nobamed
A160: 362.1.1. | B160: Medžiaga vienkartinio naudojimo sterili | H160: Medžiaga vienkartinio naudojimo sterili
A161: 362.1.2. | B161: Apklotas sudarytas iš ne mažiau kaip trijų sluoksnių: viršutinis iš neaustinės medžiagos - gerai sugeria skysčius, vidurinis - iš polietileno, nepralaidus, apatinis - apsauginis neaustinės medžiagos sluoksnis | H161: Apklotas sudarytas iš trijų sluoksnių: viršutinis iš neaustinės medžiagos - gerai sugeria skysčius, vidurinis - iš polietileno, nepralaidus, apatinis - apsauginis neaustinės medžiagos sluoksnis
A162: 362.1.3. | B162: Gerai matosi padėtos adatos, siūlai ir kitos smulkios medicininės priemonės | H162: Gerai matosi padėtos adatos, siūlai ir kitos smulkios medicininės priemonės
A163: 362.1.4. | B163: Rinkinio sudėtis: Apklotai lipniais kraštais 90 x 75 cm – 3 vnt.; Apklotas lipniu kraštu 182 x 180cm (apklotas turi turėti papildomą absorbuojantį sluoksnį su specialiomis angomis vamzdelių tvirtinimui.) – 1 vnt.; Apklotas lipniu kraštu 150 x 240 cm – 1 vnt.; U formos paklotas 230x260 cm (plyšys 20x100xcm) – 1 vnt.; Apklotas instrumentiniam staliukui 150x190 cm – 1 vnt.; Apklotas instrumentiniam staliukui 100x150 cm – 1 vnt.; Apklotai 75x80 cm – 2 vnt.; Kojinė 30x120 cm – 1 vnt.; Elastinis bintas 12 cm x 6 m – 1 vnt.; Skysčių surinkimo maišas 30 x 40 cm – 1 vnt.; Lipnios juostos 9 x 50 cm – 3 vnt.; Popierinės servetėlės 30x24 cm – 4 vnt.; Sutvirtintas maišas MAYO staliukui 78 x145 – 2 vnt | H163: Rinkinio sudėtis: Apklotai lipniais kraštais 90 x 75 cm – 3 vnt.; Apklotas lipniu kraštu 182 x 180cm (apklotas turi papildomą absorbuojantį sluoksnį su specialiomis angomis vamzdelių tvirtinimui.) – 1 vnt.; Apklotas lipniu kraštu 150 x 240 cm – 1 vnt.; U formos paklotas 230x260 cm (plyšys 20x100xcm) – 1 vnt.; Apklotas instrumentiniam staliukui 150x190 cm – 1 vnt.; Apklotas instrumentiniam staliukui 100x150 cm – 1 vnt.; Apklotai 75x80 cm – 2 vnt.; Kojinė 30x120 cm – 1 vnt.; Elastinis bintas 12 cm x 6 m – 1 vnt.; Skysčių surinkimo maišas 30 x 40 cm – 1 vnt.; Lipnios juostos 9 x 50 cm – 3 vnt.; Popierinės servetėlės 30x24 cm – 4 vnt.; Sutvirtintas maišas MAYO staliukui 78 x145 – 2 vnt
A164: 362.1.5. | B164: Produktas turi trijų lygių pakuotę | H164: Produktas turi trijų lygių pakuotę
A165: 362.1.6. | B165: Rinkinys įpakuotas steriliame įpakavime, su sterilumo kontrolės sistema, t.y. lipdukas su pakuotės sterilumo ir gamybos duomenimis | H165: Rinkinys įpakuotas steriliame įpakavime, su sterilumo kontrolės sistema, t.y. lipdukas su pakuotės sterilumo ir gamybos duomenimis
A166: 362.1.7. | B166: Leistinas apklotų dydžių nuokrypis ± 5cm
E167: Suma be PVM | F167: =SUM(F159:F166) -> 17584
E168: PVM suma | F168: =F169-F167 -> 879.2
E169: Suma su PVM | F169: =F167*1.05 -> 18463.2
A171: 363. | B171: Apklotas 235x300 cm su elastine anga 7 cm, skysčius sugerianti dalis ne mažiau 50 x 100 cm.
A172: 363.1. | B172: Apklotas 235x300 cm su elastine anga 7 cm, skysčius sugerianti dalis ne mažiau 50 x 100 cm. | C172: 6000 | D172: Vnt. | E172: 5.356 | F172: =E172*C172 -> 32136 | G172: Medline
A173: 363.1.1. | B173: Medžiaga vienkartinio naudojimo sterili | H173: Medžiaga vienkartinio naudojimo sterili
A174: 363.1.2. | B174: Apklotas sudarytas iš ne mažiau kaip trijų sluoksnių: viršutinis iš neaustinės medžiagos - gerai sugeria skysčius, vidurinis - iš polietileno, nepralaidus, apatinis - apsauginis neaustinės medžiagos sluoksnis | H174: Apklotas sudarytas iš trijų sluoksnių: viršutinis iš neaustinės medžiagos - gerai sugeria skysčius, vidurinis - iš polietileno, nepralaidus, apatinis - apsauginis neaustinės medžiagos sluoksnis
A175: 363.1.3. | B175: Elastinė anga tampriai priglunda prie galūnės, tačiau neveržia jos ir neišsitampo | H175: Elastinė anga tampriai priglunda prie galūnės, tačiau neveržia jos ir neišsitampo
A176: 363.1.4. | B176: Arčiausiai žaizdos esanti zona sutvirtinta | H176: Arčiausiai žaizdos esanti zona sutvirtinta
A177: 363.1.5. | B177: Produktas turi trijų lygių pakuotę | H177: Produktas turi trijų lygių pakuotę
A178: 363.1.6. | B178: Apklotas įpakuotas steriliame įpakavime, su sterilumo kontrolės sistema, t.y. lipdukas su pakuotės sterilumo ir gamybos duomenimis | H178: Apklotas įpakuotas steriliame įpakavime, su sterilumo kontrolės sistema, t.y. lipdukas su pakuotės sterilumo ir gamybos duomenimis
A179: 363.1.7. | B179: Leistinas apkloto dydžių nuokrypis ± 15cm
E180: Suma be PVM | F180: =SUM(F172:F179) -> 32136
E181: PVM suma | F181: =F182-F180 -> 1606.8
E182: Suma su PVM | F182: =F180*1.05 -> 33742.8
A184: 364. | B184: Apklotų rinkinys kelio sąnario artroskopijai
A185: 364.1. | B185: Apklotų rinkinys kelio sąnario artroskopijai | C185: 800 | D185: Vnt. | E185: 11.98 | F185: =E185*C185 -> 9584 | G185: Medline
A186: 364.1.1. | B186: Apklotai sudaryti iš ne mažiau kaip trijų sluoksnių: viršutinis iš neaustinės medžiagos – gerai sugeria skysčius, vidurinis – iš polietileno, nepralaidus, apatinis – apsauginis neaustinės medžiagos sluoksnis. | H186: Apklotai sudaryti iš trijų sluoksnių: viršutinis iš neaustinės medžiagos – gerai sugeria skysčius, vidurinis – iš polietileno, nepralaidus, apatinis – apsauginis neaustinės medžiagos sluoksnis.
A187: 364.1.2. | B187: Rinkinio sudėtis: apklotas 230x320 cm su elastinėmis angomis, integruotu skysčių surinkimo maišu ir išleidimo anga – 1 vnt.; Apklotas instrumentiniam staliukui 150x 190 cm – 2 vnt.; Sutvirtintas maišas MAYO staliukui 78x145 – 1 vnt.; Kojinė 22x75 cm – 1 vnt.; Lipni juosta 9x50cm – 2vnt.; Servetėlės – 4 vnt | H187: Rinkinio sudėtis: apklotas 230x320 cm su elastinėmis angomis, integruotu skysčių surinkimo maišu ir išleidimo anga – 1 vnt.; Apklotas instrumentiniam staliukui 150x 190 cm – 2 vnt.; Sutvirtintas maišas MAYO staliukui 78x145 – 1 vnt.; Kojinė 22x75 cm – 1 vnt.; Lipni juosta 9x50cm – 2vnt.; Servetėlės – 4 vnt
A188: 364.1.3. | B188: Produktas turi trijų lygių pakuotę | H188: Produktas turi trijų lygių pakuotę
A189: 364.1.4. | B189: Rinkinys įpakuotas steriliame įpakavime, su sterilumo kontrolės sistema | H189: Rinkinys įpakuotas steriliame įpakavime, su sterilumo kontrolės sistema
A190: 364.1.5. | B190: Leistinas apklotų dydžių nuokrypis ± 5cm
E191: Suma be PVM | F191: =SUM(F185:F190) -> 9584
E192: PVM suma | F192: =F193-F191 -> 479.2
E193: Suma su PVM | F193: =F191*1.05 -> 10063.2
A195: 365. | B195: Apklotas lipniu kraštu 160 x 260 cm
A196: 365.1. | B196: Apklotas lipniu kraštu 160 x 260 cm | C196: 1600 | D196: Vnt. | E196: 2.498 | F196: =E196*C196 -> 3996.8 | G196: Medline
A197: 365.1.1. | B197: Medžiaga vienkartinio naudojimo sterili | H197: Medžiaga vienkartinio naudojimo sterili
A198: 365.1.2. | B198: Apklotas sudarytas iš ne mažiau kaip trijų sluoksnių: viršutinis iš neaustinės medžiagos - gerai sugeria skysčius, vidurinis - iš polietileno, nepralaidus, apatinis - apsauginis neaustinės medžiagos sluoksnis | H198: Apklotas sudarytas trijų sluoksnių: viršutinis iš neaustinės medžiagos - gerai sugeria skysčius, vidurinis - iš polietileno, nepralaidus, apatinis - apsauginis neaustinės medžiagos sluoksnis
A199: 365.1.3. | B199: Produktas turi trijų lygių pakuotę | H199: Produktas turi trijų lygių pakuotę
A200: 365.1.4. | B200: Apklotas įpakuotas steriliame įpakavime, su sterilumo kontrolės sistema, t. y. lipdukas su pakuotės sterilumo ir gamybos duomenimis | H200: Apklotas įpakuotas steriliame įpakavime, su sterilumo kontrolės sistema, t. y. lipdukas su pakuotės sterilumo ir gamybos duomenimis
A201: 365.1.5. | B201: Leistinas apkloto dydžių nuokrypis ± 10 cm
E202: Suma be PVM | F202: =SUM(F196:F201) -> 3996.8
E203: PVM suma | F203: =F204-F202 -> 199.84
E204: Suma su PVM | F204: =F202*1.05 -> 4196.64

Sheet Subtiekėjai
A2: Sutarties vykdymui numatome pasitelkti šiuos subtiekėjus / subteikėjus / subrangovus (įrašyti visus subtiekėjus / subteikėjus / subrangovus nepriklausomai nuo tiekiamų prekių/ teikiamų paslaugų/ atliekamų darbų vertės):
A4: Subtiekėjo / subteikėjo / subrangovo (-ų) pavadinimas (-ai) | C4: Adresas | F4: Trumpas aprašymas | I4: Procentas nuo pasiūlymo kainos be PVM
A5: _ | C5: _ | F5: _ | I5: _
A11: Jeigu pirkimo dokumentų 18 punkte numatytas subtiekimo / subteikimo / subrangos apribojimas: Mes patvirtiname, kad subtiekėjams / subteikėjams / subrangovams (tiekėjams, kuriuos pasamdysime dalies sutartyje numatytų prekių tiekimui /paslaugų teikimui / darbų atlikimui) perduodamų tiekti prekių / teikti paslaugų/ atlikti darbų dalis neviršys proc. pasiūlymo kainos be PVM.
A13: Mes patvirtiname, kad esame / nesame (nereikalingą išbraukti) laikomi asocijuotais (susijusiais) su Perkančiąja organizacija pagal Lietuvos Respublikoje galiojančių teisės aktų (Lietuvos Respublikos pelno mokesčio, Lietuvos Respublikos pridėtinės vertės mokesčio ir Lietuvos Respublikos gyventojų pajamų mokesčio įstatymų) nuostatas.
A15: Kartu su pasiūlymu pateikiami šie dokumentai:
A17: Eil.Nr. | B17: "Pateiktų skaitmeninių dokumentų (ar jų kopijų) pavadinimas (pasiūlymą sudarančių konfidencialių dokumentų pavadinimai pažymėti prierašu KONFIDENCIALU)" | H17: Prisegtos bylos (failo) pavadinimas
A18: 1 | B18: Pasiūlymas | H18: Pasiūlymas
A19: 2 | B19: Įgaliojimas pasirašyti pasiūlymą | H19: Įgaliojimas pasirašyti pasiūlymą
A20: 3 | B20: Europos bendrasis viešųjų pirkimų dokumentas | H20: Eurospos bendrasis viešųjų pirkimų dokumentas
A25: Pasiūlymo galiojimo užtikrinimui pateikiame :
A26: Pasiūlymo galiojimo užtikrinimas nereikalaujamas.
A27: (Nurodyti užtikrinimo būdą, dydį, dokumentus)
A29: Pasiūlymas galioja iki termino, nustatyto pirkimo dokumentuose. Pasiūlymo neatskiriama dalis yra (rašoma, jeigu buvo reikalauta prie pasiūlymo pridėti atitinkamą dokumentą)
A33: Tiekėjo arba jo įgalioto asmens pareigų pavadinimas | E33: Administratorė
A36: Pasirašančio asmens vardas ir pavardė | E36: Gintarė Saročkienė
A39: **kadangi visas pasiūlymas pasirašomas saugiu elektroniniu parašu, šio dokumento atskirai pasirašyti neprivaloma.
A100: 563-8
